[Event "Late-Titled-Tuesday-Blitz-January-23-2024"]
[Site "Chess.com"]
[Date "2024.01.23"]
[Round "9"]
[White "Statham_01"]
[Black "grzechu96"]
[Result "0-1"]
[WhiteElo "2563"]
[BlackElo "2726"]
[TimeControl "180+1"]
[EndTime "15:43:45 PST"]
[Termination "grzechu96 won by resignation"]

1. e4 {[%clk 0:03:00.9]} 1... c5 {[%clk 0:02:57.9]} 2. Nf3 {[%clk 0:03:00.8]}
2... d6 {[%clk 0:02:58]} 3. d4 {[%clk 0:03:01.3]} 3... cxd4 {[%clk 0:02:58.9]}
4. Nxd4 {[%clk 0:03:02.2]} 4... Nf6 {[%clk 0:02:59.3]} 5. Nc3 {[%clk 0:03:02.7]}
5... a6 {[%clk 0:03:00]} 6. a3 {[%clk 0:03:03]} 6... Qc7 {[%clk 0:02:47.8]} 7.
Bg5 {[%clk 0:02:59.4]} 7... Nbd7 {[%clk 0:02:47.2]} 8. Bd3 {[%clk 0:02:48.9]}
8... e6 {[%clk 0:02:38.9]} 9. Qe2 {[%clk 0:02:43.7]} 9... Be7 {[%clk 0:02:38.8]}
10. f4 {[%clk 0:02:34.3]} 10... b5 {[%clk 0:02:35.6]} 11. Nf3 {[%clk 0:02:28.5]}
11... Bb7 {[%clk 0:02:19.7]} 12. O-O {[%clk 0:02:28.1]} 12... O-O {[%clk
0:02:16.5]} 13. Kh1 {[%clk 0:02:17.4]} 13... Rfe8 {[%clk 0:02:13.8]} 14. Rae1
{[%clk 0:02:15.6]} 14... h6 {[%clk 0:01:59.8]} 15. Bh4 {[%clk 0:02:03.8]} 15...
Nc5 {[%clk 0:01:59.2]} 16. e5 {[%clk 0:01:46.9]} 16... Nd5 {[%clk 0:01:58.6]}
17. Nxd5 {[%clk 0:01:42.3]} 17... Bxd5 {[%clk 0:01:58.5]} 18. Bg3 {[%clk
0:01:21.1]} 18... dxe5 {[%clk 0:01:44.5]} 19. Nxe5 {[%clk 0:01:14.4]} 19... f5
{[%clk 0:01:33.3]} 20. Qh5 {[%clk 0:01:07.2]} 20... Bf6 {[%clk 0:01:32.1]} 21.
Bh4 {[%clk 0:00:41.8]} 21... Bxe5 {[%clk 0:01:14.6]} 22. fxe5 {[%clk 0:00:42.2]}
22... Nxd3 {[%clk 0:01:09.9]} 23. cxd3 {[%clk 0:00:43.1]} 23... Qc2 {[%clk
0:01:06.9]} 24. Qg6 {[%clk 0:00:22.6]} 24... Rec8 {[%clk 0:01:00.7]} 25. Bf6
{[%clk 0:00:17.5]} 25... Qxg2+ {[%clk 0:00:58.7]} 26. Qxg2 {[%clk 0:00:18.4]}
26... Bxg2+ {[%clk 0:00:59.5]} 27. Kxg2 {[%clk 0:00:19.3]} 27... gxf6 {[%clk
0:01:00.2]} 28. exf6 {[%clk 0:00:19.5]} 28... Kf7 {[%clk 0:01:00.8]} 29. Kf3
{[%clk 0:00:16.4]} 29... Kxf6 {[%clk 0:00:58.5]} 30. Re2 {[%clk 0:00:17]} 30...
Rc6 {[%clk 0:00:55.1]} 31. Rg1 {[%clk 0:00:16.8]} 31... Rd8 {[%clk 0:00:55.3]}
32. Reg2 {[%clk 0:00:11.8]} 32... Rxd3+ {[%clk 0:00:54]} 33. Ke2 {[%clk
0:00:12.5]} 33... Rh3 {[%clk 0:00:54.1]} 34. Kd2 {[%clk 0:00:07.8]} 34... Rc4
{[%clk 0:00:50.2]} 35. Rg7 {[%clk 0:00:04.3]} 35... Rxh2+ {[%clk 0:00:49.2]} 36.
Kd3 {[%clk 0:00:04.9]} 36... Rh3+ {[%clk 0:00:48.9]} 37. Kd2 {[%clk 0:00:05.2]}
37... Rd4+ {[%clk 0:00:42.3]} 38. Kc2 {[%clk 0:00:05.2]} 38... Re4 {[%clk
0:00:42.8]} 39. R1g6+ {[%clk 0:00:05.6]} 39... Ke5 {[%clk 0:00:43.2]} 40. Ra7
{[%clk 0:00:06.2]} 40... Re2+ {[%clk 0:00:40.6]} 41. Kb1 {[%clk 0:00:05.4]}
41... Kf4 {[%clk 0:00:36.4]} 42. Rxa6 {[%clk 0:00:04]} 42... e5 {[%clk
0:00:36.9]} 43. Rab6 {[%clk 0:00:03.9]} 43... Rb3 {[%clk 0:00:32.5]} 44. Rxh6
{[%clk 0:00:04.5]} 44... Rbxb2+ {[%clk 0:00:32.1]} 45. Kc1 {[%clk 0:00:05.1]}
45... Rbc2+ {[%clk 0:00:29.3]} 46. Kd1 {[%clk 0:00:04.9]} 46... Rcd2+ {[%clk
0:00:29.3]} 47. Kc1 {[%clk 0:00:05.2]} 47... Ra2 {[%clk 0:00:25.1]} 48. Kb1
{[%clk 0:00:05.7]} 48... Reb2+ {[%clk 0:00:24.6]} 49. Kc1 {[%clk 0:00:06.3]}
49... Rg2 {[%clk 0:00:25.2]} 50. Kb1 {[%clk 0:00:06.2]} 50... Raf2 {[%clk
0:00:24]} 51. Rh1 {[%clk 0:00:05.4]} 51... Rb2+ {[%clk 0:00:20.7]} 52. Kc1
{[%clk 0:00:05.4]} 52... Rgc2+ {[%clk 0:00:15.7]} 53. Kd1 {[%clk 0:00:05.6]}
53... Rb1+ {[%clk 0:00:16.2]} 54. Kxc2 {[%clk 0:00:06.5]} 54... Rxh1 {[%clk
0:00:17]} 55. Rxb5 {[%clk 0:00:06.7]} 55... e4 {[%clk 0:00:17.7]} 56. a4 {[%clk
0:00:03.7]} 56... Ra1 {[%clk 0:00:13.5]} 57. a5 {[%clk 0:00:03.6]} 57... e3
{[%clk 0:00:13.7]} 58. Kd3 {[%clk 0:00:04.5]} 58... Ra3+ {[%clk 0:00:12.8]} 59.
Ke2 {[%clk 0:00:05.1]} 59... Ra2+ {[%clk 0:00:13.4]} 60. Ke1 {[%clk 0:00:03.8]}
60... Ke4 {[%clk 0:00:13.8]} 61. Kf1 {[%clk 0:00:02.4]} 61... f4 {[%clk
0:00:14]} 62. Kg1 {[%clk 0:00:01.5]} 62... f3 {[%clk 0:00:13.5]} 63. Rb4+ {[%clk
0:00:02]} 63... Kf5 {[%clk 0:00:13]} 64. Rb5+ {[%clk 0:00:02.5]} 64... Kf4
{[%clk 0:00:13.5]} 65. Kh1 {[%clk 0:00:01.9]} 65... Ra1+ {[%clk 0:00:12.1]} 66.
Kh2 {[%clk 0:00:01.9]} 66... e2 {[%clk 0:00:12.6]} 67. Rb4+ {[%clk 0:00:02.2]}
67... Ke5 {[%clk 0:00:12.6]} 68. Rb5+ {[%clk 0:00:02.7]} 68... Kd6 {[%clk
0:00:12.6]} 69. Rb6+ {[%clk 0:00:02.7]} 69... Kc5 {[%clk 0:00:12.9]} 70. Re6
{[%clk 0:00:03.2]} 70... e1=Q {[%clk 0:00:13.1]} 71. Rxe1 {[%clk 0:00:04.1]}
71... Rxe1 {[%clk 0:00:13.4]} 72. a6 {[%clk 0:00:05]} 0-1

[Event "Late-Titled-Tuesday-Blitz-January-23-2024"]
[Site "Chess.com"]
[Date "2024.01.23"]
[Round "9"]
[White "Horokoskii"]
[Black "UnTucopalaTimba"]
[Result "1-0"]
[WhiteElo "2088"]
[BlackElo "1925"]
[TimeControl "180+1"]
[EndTime "15:43:54 PST"]
[Termination "Horokoskii won on time"]

1. c4 {[%clk 0:03:00.9]} 1... c6 {[%clk 0:02:57.1]} 2. e4 {[%clk 0:02:59.6]}
2... d5 {[%clk 0:02:56.5]} 3. exd5 {[%clk 0:03:00]} 3... cxd5 {[%clk 0:02:56.6]}
4. d4 {[%clk 0:03:00.7]} 4... Nf6 {[%clk 0:02:55.1]} 5. Nc3 {[%clk 0:03:01]}
5... Nc6 {[%clk 0:02:52.9]} 6. Nf3 {[%clk 0:03:01]} 6... Bg4 {[%clk 0:02:52]} 7.
cxd5 {[%clk 0:02:58]} 7... Nxd5 {[%clk 0:02:50.5]} 8. Be2 {[%clk 0:02:56.1]}
8... Nxc3 {[%clk 0:02:44.6]} 9. bxc3 {[%clk 0:02:57]} 9... e6 {[%clk 0:02:44.3]}
10. O-O {[%clk 0:02:56.7]} 10... Bd6 {[%clk 0:02:41.6]} 11. h3 {[%clk
0:02:56.6]} 11... Bh5 {[%clk 0:02:41.2]} 12. a4 {[%clk 0:02:46.2]} 12... O-O
{[%clk 0:02:35.2]} 13. Ba3 {[%clk 0:02:43.3]} 13... Bxa3 {[%clk 0:02:30.3]} 14.
Rxa3 {[%clk 0:02:44.2]} 14... a5 {[%clk 0:02:19.2]} 15. Ne5 {[%clk 0:02:42.3]}
15... Nxe5 {[%clk 0:02:12]} 16. Bxh5 {[%clk 0:02:40.8]} 16... Nc4 {[%clk
0:02:09.2]} 17. Rb3 {[%clk 0:02:39.3]} 17... Qc7 {[%clk 0:01:59]} 18. Be2 {[%clk
0:02:37.4]} 18... Nd6 {[%clk 0:01:52.6]} 19. Bd3 {[%clk 0:02:36.6]} 19... Rfc8
{[%clk 0:01:47.9]} 20. Qh5 {[%clk 0:02:30]} 20... g6 {[%clk 0:01:45]} 21. Qf3
{[%clk 0:02:30.3]} 21... Qc6 {[%clk 0:01:40.6]} 22. Qg3 {[%clk 0:02:22]} 22...
Nf5 {[%clk 0:01:22.6]} 23. Bxf5 {[%clk 0:02:19.5]} 23... exf5 {[%clk 0:01:22.6]}
24. Rfb1 {[%clk 0:02:17.5]} 24... Qxa4 {[%clk 0:01:15.8]} 25. Rxb7 {[%clk
0:02:15.4]} 25... Qc6 {[%clk 0:01:10.9]} 26. Qe5 {[%clk 0:02:00.3]} 26... Re8
{[%clk 0:01:04.4]} 27. Qc7 {[%clk 0:01:52.9]} 27... Qxc7 {[%clk 0:00:55.1]} 28.
Rxc7 {[%clk 0:01:53.8]} 28... Rec8 {[%clk 0:00:54]} 29. Rbb7 {[%clk 0:01:37]}
29... Rxc7 {[%clk 0:00:53.2]} 30. Rxc7 {[%clk 0:01:37.9]} 30... a4 {[%clk
0:00:53.4]} 31. Rb7 {[%clk 0:01:32.3]} 31... a3 {[%clk 0:00:52.8]} 32. Rb1
{[%clk 0:01:30.6]} 32... Rc8 {[%clk 0:00:50.7]} 33. Rb3 {[%clk 0:01:26.7]} 33...
a2 {[%clk 0:00:46.6]} 34. Ra3 {[%clk 0:01:24.9]} 34... Kf8 {[%clk 0:00:41.6]}
35. Rxa2 {[%clk 0:01:23.1]} 35... Rxc3 {[%clk 0:00:41.5]} 36. Rd2 {[%clk
0:01:19.4]} 36... Ke7 {[%clk 0:00:40.8]} 37. g3 {[%clk 0:01:19.3]} 37... Kd6
{[%clk 0:00:40.2]} 38. Kg2 {[%clk 0:01:11.4]} 38... Kd5 {[%clk 0:00:40.2]} 39.
Re2 {[%clk 0:01:09.5]} 39... Kxd4 {[%clk 0:00:36.5]} 40. Re7 {[%clk 0:01:09.1]}
40... Rc6 {[%clk 0:00:28.3]} 41. Rxf7 {[%clk 0:01:08.7]} 41... h5 {[%clk
0:00:27.6]} 42. Kf3 {[%clk 0:01:06.2]} 42... Ke5 {[%clk 0:00:25.5]} 43. Rf8
{[%clk 0:01:00.9]} 43... Rc3+ {[%clk 0:00:23.9]} 44. Kg2 {[%clk 0:01:00.5]}
44... Rc6 {[%clk 0:00:22.3]} 45. Ra8 {[%clk 0:00:56.9]} 45... Kf6 {[%clk
0:00:21.2]} 46. Ra5 {[%clk 0:00:55.8]} 46... Ke6 {[%clk 0:00:17.9]} 47. Kf3
{[%clk 0:00:55]} 47... Kf6 {[%clk 0:00:17.7]} 48. Ra3 {[%clk 0:00:54]} 48... g5
{[%clk 0:00:16.5]} 49. Ra5 {[%clk 0:00:51.8]} 49... Ke6 {[%clk 0:00:15.3]} 50.
Rb5 {[%clk 0:00:45.5]} 50... Kf6 {[%clk 0:00:14.9]} 51. Ra5 {[%clk 0:00:44.4]}
51... Kg6 {[%clk 0:00:14.7]} 52. h4 {[%clk 0:00:45.1]} 52... Rc3+ {[%clk
0:00:10.9]} 53. Kg2 {[%clk 0:00:44.1]} 53... Rc6 {[%clk 0:00:10.7]} 54. Rd5
{[%clk 0:00:40.6]} 54... g4 {[%clk 0:00:09.8]} 55. Ra5 {[%clk 0:00:39.2]} 55...
Kf6 {[%clk 0:00:08.9]} 56. Ra2 {[%clk 0:00:39.2]} 56... Kg6 {[%clk 0:00:08.9]}
57. f3 {[%clk 0:00:39.6]} 57... Kh6 {[%clk 0:00:07.1]} 58. Re2 {[%clk
0:00:36.8]} 58... Kg6 {[%clk 0:00:06.9]} 59. Kf2 {[%clk 0:00:37.4]} 59... Kf6
{[%clk 0:00:06.5]} 60. Rb2 {[%clk 0:00:37.8]} 60... Kg6 {[%clk 0:00:06.4]} 61.
Ra2 {[%clk 0:00:35.8]} 61... Kf6 {[%clk 0:00:06.2]} 62. fxg4 {[%clk 0:00:35.5]}
62... fxg4 {[%clk 0:00:05.4]} 63. Ra5 {[%clk 0:00:34.1]} 63... Kg6 {[%clk
0:00:05.1]} 64. Rg5+ {[%clk 0:00:34.6]} 64... Kh6 {[%clk 0:00:05]} 65. Ke3
{[%clk 0:00:34.1]} 65... Rf6 {[%clk 0:00:04.4]} 66. Ke2 {[%clk 0:00:27.6]} 66...
Rf3 {[%clk 0:00:03.6]} 67. Ra5 {[%clk 0:00:28]} 67... Rf6 {[%clk 0:00:03.3]} 68.
Ra3 {[%clk 0:00:26.5]} 68... Kg6 {[%clk 0:00:03]} 69. Ke1 {[%clk 0:00:24.7]}
69... Kh6 {[%clk 0:00:02.7]} 70. Re3 {[%clk 0:00:24.4]} 70... Kg6 {[%clk
0:00:02.8]} 71. Ke2 {[%clk 0:00:19.8]} 71... Kh6 {[%clk 0:00:02.8]} 72. Rd3
{[%clk 0:00:20.2]} 72... Kg6 {[%clk 0:00:02.9]} 73. Rd5 {[%clk 0:00:19.8]} 73...
Rf3 {[%clk 0:00:01.6]} 74. Rd3 {[%clk 0:00:20.4]} 74... Rf6 {[%clk 0:00:01.4]}
75. Re3 {[%clk 0:00:20.6]} 75... Kh6 {[%clk 0:00:01.5]} 76. Kd3 {[%clk
0:00:21.2]} 76... Kg6 {[%clk 0:00:01.6]} 77. Ke4 {[%clk 0:00:21.5]} 1-0

[Event "Late-Titled-Tuesday-Blitz-January-23-2024"]
[Site "Chess.com"]
[Date "2024.01.23"]
[Round "9"]
[White "jcibarra"]
[Black "Mikhail_Golubev"]
[Result "0-1"]
[WhiteElo "2844"]
[BlackElo "2565"]
[TimeControl "180+1"]
[EndTime "15:44:16 PST"]
[Termination "Mikhail_Golubev won by checkmate"]

1. e4 {[%clk 0:03:00.9]} 1... c5 {[%clk 0:02:58.2]} 2. Nf3 {[%clk 0:03:01]} 2...
d6 {[%clk 0:02:58.2]} 3. c3 {[%clk 0:03:01.2]} 3... Nf6 {[%clk 0:02:57.1]} 4. h3
{[%clk 0:03:01.3]} 4... g6 {[%clk 0:02:53.5]} 5. Bd3 {[%clk 0:03:01.2]} 5... Bg7
{[%clk 0:02:52]} 6. Bc2 {[%clk 0:03:01.8]} 6... O-O {[%clk 0:02:52.1]} 7. O-O
{[%clk 0:03:01.9]} 7... b5 {[%clk 0:02:38.7]} 8. d4 {[%clk 0:02:58.7]} 8... Bb7
{[%clk 0:02:37.2]} 9. Re1 {[%clk 0:02:57.4]} 9... cxd4 {[%clk 0:02:32]} 10. cxd4
{[%clk 0:02:56.6]} 10... Nc6 {[%clk 0:02:32]} 11. a3 {[%clk 0:02:51.1]} 11...
Rc8 {[%clk 0:02:20.7]} 12. Nc3 {[%clk 0:02:48.7]} 12... b4 {[%clk 0:02:16]} 13.
axb4 {[%clk 0:02:48.4]} 13... Nxb4 {[%clk 0:02:16.6]} 14. Bb3 {[%clk 0:02:45.4]}
14... a5 {[%clk 0:02:10.4]} 15. Bg5 {[%clk 0:02:33.7]} 15... d5 {[%clk
0:02:02.6]} 16. exd5 {[%clk 0:02:16.9]} 16... Nbxd5 {[%clk 0:01:51.2]} 17. Na4
{[%clk 0:01:59]} 17... h6 {[%clk 0:01:41.2]} 18. Bd2 {[%clk 0:01:55.4]} 18...
Nb4 {[%clk 0:01:36.3]} 19. Bxb4 {[%clk 0:01:32]} 19... axb4 {[%clk 0:01:35.6]}
20. Ne5 {[%clk 0:01:30.4]} 20... Bd5 {[%clk 0:01:32.7]} 21. Bxd5 {[%clk
0:01:21.2]} 21... Nxd5 {[%clk 0:01:26.2]} 22. Qf3 {[%clk 0:01:18.4]} 22... Qd6
{[%clk 0:01:17.4]} 23. Rad1 {[%clk 0:01:01.5]} 23... e6 {[%clk 0:01:11.1]} 24.
h4 {[%clk 0:00:56.9]} 24... Rc2 {[%clk 0:01:05.6]} 25. Qe4 {[%clk 0:00:52.3]}
25... Rfc8 {[%clk 0:00:58]} 26. g3 {[%clk 0:00:39.4]} 26... Bxe5 {[%clk
0:00:52.9]} 27. dxe5 {[%clk 0:00:37.7]} 27... Qa6 {[%clk 0:00:40.6]} 28. Nc3
{[%clk 0:00:31.7]} 28... R2xc3 {[%clk 0:00:21.2]} 29. bxc3 {[%clk 0:00:29.3]}
29... Nxc3 {[%clk 0:00:21.3]} 30. Qxb4 {[%clk 0:00:28.6]} 30... Nxd1 {[%clk
0:00:19.8]} 31. Rxd1 {[%clk 0:00:29.5]} 31... Qe2 {[%clk 0:00:17.8]} 32. Qd4
{[%clk 0:00:29.5]} 32... Qf3 {[%clk 0:00:13.2]} 33. Ra1 {[%clk 0:00:27.2]} 33...
Ra8 {[%clk 0:00:12.1]} 34. Rc1 {[%clk 0:00:25.9]} 34... h5 {[%clk 0:00:10.8]}
35. Qd2 {[%clk 0:00:24.8]} 35... Qe4 {[%clk 0:00:08.9]} 36. Re1 {[%clk
0:00:25.1]} 36... Qf3 {[%clk 0:00:08.3]} 37. Qb2 {[%clk 0:00:24.5]} 37... Qd5
{[%clk 0:00:07.8]} 38. Qc3 {[%clk 0:00:20.6]} 38... Rd8 {[%clk 0:00:06.9]} 39.
Ra1 {[%clk 0:00:17.4]} 39... Qd4 {[%clk 0:00:06.9]} 40. Qe1 {[%clk 0:00:11.7]}
40... Qd5 {[%clk 0:00:05.7]} 41. Rc1 {[%clk 0:00:09.8]} 41... Qf3 {[%clk
0:00:05.4]} 42. Ra1 {[%clk 0:00:06.6]} 42... Rd3 {[%clk 0:00:05.2]} 43. Rc1
{[%clk 0:00:06.8]} 43... Kg7 {[%clk 0:00:05.4]} 44. Qa5 {[%clk 0:00:05.5]} 44...
Rd5 {[%clk 0:00:05.1]} 45. Qe1 {[%clk 0:00:04.9]} 45... Qf5 {[%clk 0:00:04.6]}
46. f4 {[%clk 0:00:03.8]} 46... Rd3 {[%clk 0:00:04.7]} 47. Rc3 {[%clk
0:00:04.2]} 47... Rxc3 {[%clk 0:00:04.2]} 48. Qxc3 {[%clk 0:00:05.1]} 48... Qe4
{[%clk 0:00:04.5]} 49. Kf2 {[%clk 0:00:05.6]} 49... Qd5 {[%clk 0:00:04.7]} 50.
Qe3 {[%clk 0:00:05.6]} 50... Qa2+ {[%clk 0:00:04.7]} 51. Kf3 {[%clk 0:00:05.9]}
51... Qd5+ {[%clk 0:00:05.1]} 52. Qe4 {[%clk 0:00:06.3]} 52... Qb3+ {[%clk
0:00:05.2]} 53. Kg2 {[%clk 0:00:06.7]} 53... Qa2+ {[%clk 0:00:05.1]} 54. Kg1
{[%clk 0:00:06.8]} 54... Qa1+ {[%clk 0:00:05]} 55. Kf2 {[%clk 0:00:07.4]} 55...
Qb2+ {[%clk 0:00:05.5]} 56. Qe2 {[%clk 0:00:07.9]} 56... Qb4 {[%clk 0:00:04.1]}
57. Qe3 {[%clk 0:00:07.9]} 57... Qb2+ {[%clk 0:00:04.3]} 58. Kf3 {[%clk
0:00:07.9]} 58... Qb7+ {[%clk 0:00:04]} 59. Ke2 {[%clk 0:00:08.4]} 59... Qb2+
{[%clk 0:00:04.4]} 60. Ke1 {[%clk 0:00:07.7]} 60... Qb1+ {[%clk 0:00:04.2]} 61.
Kd2 {[%clk 0:00:07.9]} 61... Qb2+ {[%clk 0:00:04.5]} 62. Kd3 {[%clk 0:00:08.1]}
62... Qb3+ {[%clk 0:00:04.8]} 63. Ke2 {[%clk 0:00:07.9]} 63... Qb2+ {[%clk
0:00:04.9]} 64. Qd2 {[%clk 0:00:08.3]} 64... Qb5+ {[%clk 0:00:04.8]} 65. Qd3
{[%clk 0:00:08.3]} 65... Qc6 {[%clk 0:00:05]} 66. Qd8 {[%clk 0:00:07.3]} 66...
Qg2+ {[%clk 0:00:04.6]} 67. Kd1 {[%clk 0:00:07]} 67... Qxg3 {[%clk 0:00:04.9]}
68. Qf6+ {[%clk 0:00:07.5]} 68... Kg8 {[%clk 0:00:05.2]} 69. Qd8+ {[%clk
0:00:07.4]} 69... Kh7 {[%clk 0:00:05.4]} 70. Qf6 {[%clk 0:00:06.4]} 70... Qg4+
{[%clk 0:00:05.9]} 71. Kd2 {[%clk 0:00:06]} 71... Qf5 {[%clk 0:00:06.5]} 72.
Qxf5 {[%clk 0:00:05]} 72... gxf5 {[%clk 0:00:06]} 73. Kc3 {[%clk 0:00:05.7]}
73... Kg6 {[%clk 0:00:05.6]} 74. Kd4 {[%clk 0:00:06.3]} 74... f6 {[%clk
0:00:05.6]} 75. exf6 {[%clk 0:00:03.4]} 75... Kxf6 {[%clk 0:00:05.9]} 76. Kc4
{[%clk 0:00:03.9]} 76... e5 {[%clk 0:00:06.2]} 77. Kd5 {[%clk 0:00:02.5]} 77...
exf4 {[%clk 0:00:06.2]} 78. Kd4 {[%clk 0:00:03.3]} 78... f3 {[%clk 0:00:06.3]}
79. Ke3 {[%clk 0:00:03.7]} 79... Ke5 {[%clk 0:00:06.1]} 80. Kxf3 {[%clk
0:00:04.3]} 80... f4 {[%clk 0:00:06.5]} 81. Kf2 {[%clk 0:00:05]} 81... Ke4
{[%clk 0:00:07]} 82. Ke2 {[%clk 0:00:05.4]} 82... f3+ {[%clk 0:00:07.2]} 83. Kf2
{[%clk 0:00:06]} 83... Kf4 {[%clk 0:00:07.4]} 84. Kg1 {[%clk 0:00:06.6]} 84...
Kg3 {[%clk 0:00:07.6]} 85. Kh1 {[%clk 0:00:07.4]} 85... Kxh4 {[%clk 0:00:07.8]}
86. Kh2 {[%clk 0:00:07.9]} 86... Kg4 {[%clk 0:00:08.2]} 87. Kh1 {[%clk 0:00:08]}
87... h4 {[%clk 0:00:08.8]} 88. Kh2 {[%clk 0:00:08.6]} 88... h3 {[%clk
0:00:09.1]} 89. Kh1 {[%clk 0:00:09.3]} 89... Kg3 {[%clk 0:00:09.3]} 90. Kg1
{[%clk 0:00:08.9]} 90... f2+ {[%clk 0:00:08.8]} 91. Kh1 {[%clk 0:00:09.3]} 91...
f1=Q# {[%clk 0:00:07.9]} 0-1

[Event "Late-Titled-Tuesday-Blitz-January-23-2024"]
[Site "Chess.com"]
[Date "2024.01.23"]
[Round "9"]
[White "CaspiIsrael"]
[Black "Zhigalko_Sergei"]
[Result "0-1"]
[WhiteElo "2678"]
[BlackElo "2956"]
[TimeControl "180+1"]
[EndTime "15:44:35 PST"]
[Termination "Zhigalko_Sergei won on time"]

1. d4 {[%clk 0:03:00.9]} 1... Nf6 {[%clk 0:03:00.2]} 2. c4 {[%clk 0:03:01.4]}
2... e6 {[%clk 0:03:00.8]} 3. Nc3 {[%clk 0:03:02]} 3... Bb4 {[%clk 0:03:01]} 4.
a3 {[%clk 0:03:02.7]} 4... Bxc3+ {[%clk 0:03:00.7]} 5. bxc3 {[%clk 0:03:03.6]}
5... O-O {[%clk 0:03:00.1]} 6. f3 {[%clk 0:03:02]} 6... d5 {[%clk 0:02:40.8]} 7.
cxd5 {[%clk 0:03:01.8]} 7... exd5 {[%clk 0:02:41.7]} 8. e3 {[%clk 0:03:02.3]}
8... Bf5 {[%clk 0:02:42.1]} 9. Ne2 {[%clk 0:02:56.9]} 9... Re8 {[%clk
0:02:41.4]} 10. g4 {[%clk 0:02:55.3]} 10... Bxg4 {[%clk 0:01:24.7]} 11. fxg4
{[%clk 0:02:55]} 11... Ne4 {[%clk 0:01:25.4]} 12. Bg2 {[%clk 0:02:27.5]} 12...
Qh4+ {[%clk 0:01:24.6]} 13. Ng3 {[%clk 0:02:26.3]} 13... Nxg3 {[%clk 0:01:22.6]}
14. hxg3 {[%clk 0:02:25.4]} 14... Qxg3+ {[%clk 0:01:23.5]} 15. Kf1 {[%clk
0:02:25.8]} 15... Re6 {[%clk 0:01:17.9]} 16. Ra2 {[%clk 0:02:14.4]} 16... Nd7
{[%clk 0:01:07.9]} 17. Rh3 {[%clk 0:02:04.8]} 17... Qd6 {[%clk 0:01:07.9]} 18.
g5 {[%clk 0:01:59.8]} 18... Nf8 {[%clk 0:00:59.4]} 19. Rf2 {[%clk 0:01:57.9]}
19... c6 {[%clk 0:00:58.2]} 20. Qh5 {[%clk 0:01:44.1]} 20... Re7 {[%clk
0:00:57.2]} 21. Rhf3 {[%clk 0:01:43.7]} 21... g6 {[%clk 0:00:53.2]} 22. Qh6
{[%clk 0:01:29.4]} 22... Rae8 {[%clk 0:00:52]} 23. Rf6 {[%clk 0:01:23.8]} 23...
Qd8 {[%clk 0:00:49.7]} 24. Bh3 {[%clk 0:01:19.2]} 24... Qa5 {[%clk 0:00:38.2]}
25. Rc2 {[%clk 0:00:57.5]} 25... Qb5+ {[%clk 0:00:35.9]} 26. Kg2 {[%clk
0:00:50.4]} 26... Qd3 {[%clk 0:00:27.6]} 27. Rff2 {[%clk 0:00:50.1]} 27... Re4
{[%clk 0:00:28.2]} 28. Kh2 {[%clk 0:00:39.3]} 28... Qb5 {[%clk 0:00:20.1]} 29.
Bg2 {[%clk 0:00:37.9]} 29... R4e7 {[%clk 0:00:18.6]} 30. Qh4 {[%clk 0:00:35.4]}
30... Qb1 {[%clk 0:00:18.6]} 31. Qf4 {[%clk 0:00:32.1]} 31... Ne6 {[%clk
0:00:18.9]} 32. Qg4 {[%clk 0:00:31.9]} 32... Ng7 {[%clk 0:00:19.2]} 33. a4
{[%clk 0:00:27.9]} 33... Nf5 {[%clk 0:00:19.2]} 34. Rfe2 {[%clk 0:00:23]} 34...
a5 {[%clk 0:00:06.4]} 35. Qf4 {[%clk 0:00:21.9]} 35... Qb3 {[%clk 0:00:05.5]}
36. Bh3 {[%clk 0:00:18.5]} 36... Ng7 {[%clk 0:00:05.8]} 37. Bg2 {[%clk
0:00:17.9]} 37... Qxa4 {[%clk 0:00:05.5]} 38. Ra2 {[%clk 0:00:15.9]} 38... Qc4
{[%clk 0:00:05.7]} 39. Ba3 {[%clk 0:00:15.5]} 39... Re6 {[%clk 0:00:04.4]} 40.
Bd6 {[%clk 0:00:14.6]} 40... Nf5 {[%clk 0:00:01.9]} 41. Be5 {[%clk 0:00:14.3]}
41... Qxc3 {[%clk 0:00:02.5]} 42. Bh3 {[%clk 0:00:12.2]} 42... Rxe5 {[%clk
0:00:02.2]} 43. dxe5 {[%clk 0:00:11.8]} 43... Rxe5 {[%clk 0:00:02.9]} 44. Rac2
{[%clk 0:00:11.2]} 44... Qa1 {[%clk 0:00:03.2]} 45. e4 {[%clk 0:00:10.4]} 45...
Nd4 {[%clk 0:00:02.3]} 46. Ra2 {[%clk 0:00:05.1]} 46... Nxe2 {[%clk 0:00:02.3]}
47. Rxe2 {[%clk 0:00:05.1]} 47... Qd4 {[%clk 0:00:01.9]} 48. Qf6 {[%clk
0:00:03.4]} 48... Rxe4 {[%clk 0:00:01.7]} 49. Rxe4 {[%clk 0:00:01.3]} 49... Qxe4
{[%clk 0:00:01.4]} 50. Qd8+ {[%clk 0:00:01.4]} 50... Kg7 {[%clk 0:00:02.1]} 51.
Qf6+ {[%clk 0:00:02.3]} 51... Kf8 {[%clk 0:00:02.5]} 52. Qd8+ {[%clk 0:00:03.1]}
52... Qe8 {[%clk 0:00:02.3]} 53. Qxa5 {[%clk 0:00:03.7]} 53... Qe5+ {[%clk
0:00:01.8]} 54. Kh1 {[%clk 0:00:04.2]} 54... Qxg5 {[%clk 0:00:02.2]} 55. Qa8+
{[%clk 0:00:04.4]} 55... Kg7 {[%clk 0:00:02.1]} 56. Qxb7 {[%clk 0:00:05.3]}
56... Qc1+ {[%clk 0:00:02.1]} 57. Kh2 {[%clk 0:00:05.4]} 57... Qd2+ {[%clk
0:00:02.6]} 58. Kh1 {[%clk 0:00:05.7]} 58... Qe1+ {[%clk 0:00:02.7]} 59. Kh2
{[%clk 0:00:06.3]} 59... Qe2+ {[%clk 0:00:02.5]} 60. Bg2 {[%clk 0:00:06.9]}
60... Qe5+ {[%clk 0:00:02.5]} 61. Kh1 {[%clk 0:00:06.7]} 61... Qf6 {[%clk
0:00:02.6]} 62. Qd7 {[%clk 0:00:06.6]} 62... h5 {[%clk 0:00:02.9]} 63. Kh2
{[%clk 0:00:06.8]} 63... Qe5+ {[%clk 0:00:02.9]} 64. Kh1 {[%clk 0:00:06.9]}
64... Qe1+ {[%clk 0:00:02.9]} 65. Kh2 {[%clk 0:00:07.2]} 65... Qe5+ {[%clk
0:00:03.6]} 66. Kg1 {[%clk 0:00:07.4]} 66... Qe6 {[%clk 0:00:04.5]} 67. Qc7
{[%clk 0:00:07.2]} 67... Qf6 {[%clk 0:00:04.5]} 68. Qd7 {[%clk 0:00:07.1]} 68...
h4 {[%clk 0:00:04.6]} 69. Kh2 {[%clk 0:00:07.5]} 69... Qe5+ {[%clk 0:00:04.6]}
70. Kh1 {[%clk 0:00:07.8]} 70... Qe6 {[%clk 0:00:04.6]} 71. Qc7 {[%clk
0:00:07.8]} 71... Qe1+ {[%clk 0:00:04.5]} 72. Kh2 {[%clk 0:00:07.6]} 72... Qg3+
{[%clk 0:00:04.1]} 73. Qxg3 {[%clk 0:00:07.8]} 73... hxg3+ {[%clk 0:00:05]} 74.
Kxg3 {[%clk 0:00:08.6]} 74... Kf6 {[%clk 0:00:05.7]} 75. Kf4 {[%clk 0:00:09.1]}
75... Ke6 {[%clk 0:00:05.2]} 76. Kg5 {[%clk 0:00:06.5]} 76... Ke5 {[%clk
0:00:04.5]} 77. Kg4 {[%clk 0:00:04.3]} 77... c5 {[%clk 0:00:04.8]} 78. Kf3
{[%clk 0:00:03.7]} 78... c4 {[%clk 0:00:04.9]} 79. Ke2 {[%clk 0:00:04.1]} 79...
d4 {[%clk 0:00:05]} 80. Kd2 {[%clk 0:00:04.3]} 80... f5 {[%clk 0:00:05.2]} 81.
Bf1 {[%clk 0:00:04.1]} 81... Kd5 {[%clk 0:00:05.3]} 82. Bg2+ {[%clk 0:00:04.5]}
82... Kc5 {[%clk 0:00:05.6]} 83. Bh3 {[%clk 0:00:03.7]} 83... Kd5 {[%clk
0:00:02.6]} 84. Bg2+ {[%clk 0:00:03.6]} 84... Ke5 {[%clk 0:00:03.2]} 85. Bf1
{[%clk 0:00:04]} 85... d3 {[%clk 0:00:03.6]} 86. Kc3 {[%clk 0:00:03.5]} 86...
Ke4 {[%clk 0:00:03.9]} 87. Kxc4 {[%clk 0:00:02.8]} 87... d2 {[%clk 0:00:04.3]}
88. Be2 {[%clk 0:00:03.4]} 88... g5 {[%clk 0:00:04.5]} 89. Kc3 {[%clk
0:00:02.4]} 89... Ke3 {[%clk 0:00:04.9]} 90. Bd1 {[%clk 0:00:02.8]} 90... g4
{[%clk 0:00:05.4]} 91. Kc2 {[%clk 0:00:01.2]} 91... g3 {[%clk 0:00:05.8]} 92.
Bh5 {[%clk 0:00:01]} 92... g2 {[%clk 0:00:06]} 0-1